[Event "Chess Super League 2021"]
[Site "Online"]
[Date "2021.10.11"]
[Round "1.1"]
[White "Aryan Chopra"]
[Black "Iniyan, P."]
[Result "1-0"]
[ECO "A46"]
[WhiteElo "2585"]
[BlackElo "2529"]
[Annotator "ChessBase"]
[PlyCount "89"]
[EventDate "2021.10.11"]
[EventType "team-tourn"]
[EventCountry "NET"]
[SourceTitle "playchess.com"]
[Source "ChessBase"]
[SourceQuality "1"]
[TimeControl "900+10"]

1. Nf3 {[%emt 0:00:18]} Nf6 {[%emt 0:00:27]} 2. g3 {[%emt 0:00:02]} e6 {[%emt 0:00:08]} 3. Bg2 {[%emt 0:00:26]} b5 {[%emt 0:00:42]} 4. O-O {[%emt 0:00:39]} Bb7 {[%emt 0:00:07]} 5. d4 {[%emt 0:00:16]} c5 {[%emt 0:00:14]} 6. Na3 {[%emt 0:00:06]} b4 {[%emt 0:00:12]} 7. Nc4 {[%emt 0:00:04]} cxd4 {[%emt 0:00:41]} 8. a3 {[%emt 0:00:20]} Qc7 {[%emt 0:00:37]} 9. Qxd4 {[%emt 0:02:58]} d5 {[%emt 0:00:28]} 10. Nce5 {[%emt 0:01:26]} Bc5 {[%emt 0:00:21]} 11. Qd1 {[%emt 0:03:53]} bxa3 {[%emt 0:00:13]} 12. bxa3 {[%emt 0:00:20]} Ne4 {[%emt 0:00:40]} 13. c4 {[%emt 0:02:39]} O-O {[%emt 0:03:31]} 14. Bf4 {[%emt 0:01:05]} Qe7 {[%emt 0:00:12]} 15. Qb3 {[%emt 0:01:07]} f6 {[%emt 0:00:04]} 16. Nd3 {[%emt 0:00:04]} dxc4 {[%emt 0:00:01]} 17. Qxc4 {[%emt 0:00:02]} Bd5 {[%emt 0:00:01]} 18. Qa4 {[%emt 0:00:51]} Bb6 {[%emt 0:00:10]} 19. Rac1 {[%emt 0:00:32]} Nd7 {[%emt 0:01:46]} 20. Nb4 {[%emt 0:00:05]} g5 {[%emt 0:00:23]} 21. Bd2 {[%emt 0:00:34]} g4 {[%emt 0:00:12]} 22. Nxd5 {[%emt 0:00:02]} exd5 {[%emt 0:00:02]} 23. Bb4 {[%emt 0:00:03]} Ndc5 {[%emt 0:01:17]} 24. Nh4 {[%emt 0:00:16]} Nxa4 {[%emt 0:02:48]} 25. Bxe7 {[%emt 0:00:03]} Rf7 {[%emt 0:00:02]} 26. Bxe4 {[%emt 0:00:01]} dxe4 {[%emt 0:00:02]} 27. Nf5 {[%emt 0:00:01]} Kh8 {[%emt 0:00:06]} 28. Rc6 {[%emt 0:00:25]} Rxe7 {[%emt 0:00:22]} 29. Nxe7 {[%emt 0:00:03]} Rd8 {[%emt 0:00:00]} 30. Rxf6 {[%emt 0:00:32]} Rd2 {[%emt 0:00:19]} 31. e3 {[%emt 0:00:04]} Nc3 {[%emt 0:00:04]} 32. Nf5 {[%emt 0:00:14]} Kg8 {[%emt 0:00:08]} 33. Kg2 {[%emt 0:00:19]} Nd1 {[%emt 0:00:18]} 34. Kg1 {[%emt 0:00:15]} Nc3 {[%emt 0:00:06]} 35. Rc6 {[%emt 0:00:11]} Rd3 {[%emt 0:00:28]} 36. Nh6+ {[%emt 0:00:09]} Kg7 {[%emt 0:00:01]} 37. Nxg4 {[%emt 0:00:01]} Ne2+ {[%emt 0:00:01]} 38. Kg2 {[%emt 0:00:01]} Rxa3 {[%emt 0:00:00]} 39. Rd1 {[%emt 0:00:05]} Rd3 {[%emt 0:00:07]} 40. Rxd3 {[%emt 0:00:08]} exd3 {[%emt 0:00:00]} 41. Rd6 {[%emt 0:00:03]} Nc1 {[%emt 0:00:07]} 42. Ne5 {[%emt 0:00:02]} Bc5 {[%emt 0:00:15]} 43. Rd7+ {[%emt 0:00:04]} Kf6 {[%emt 0:00:01]} 44. Nxd3 {[%emt 0:00:00]} Nxd3 {[%emt 0:00:02]} 45. Rxd3 {[%emt 0:00:00]} 1-0

[Event "Chess Super League 2021"]
[Site "Online"]
[Date "2021.10.11"]
[Round "1.1"]
[White "Tania, Sachdev"]
[Black "Gomes, Mary Ann"]
[Result "0-1"]
[ECO "E11"]
[WhiteElo "2392"]
[BlackElo "2354"]
[Annotator "ChessBase"]
[PlyCount "66"]
[EventDate "2021.10.11"]
[EventType "team-tourn"]
[EventCountry "NET"]
[SourceTitle "playchess.com"]
[Source "ChessBase"]
[SourceQuality "1"]
[TimeControl "900+10"]

1. d4 {[%emt 0:02:15]} Nf6 {[%emt 0:00:24]} 2. c4 {[%emt 0:00:02]} e6 {[%emt 0:00:03]} 3. Nf3 {[%emt 0:00:02]} Bb4+ {[%emt 0:00:03]} 4. Bd2 {[%emt 0:00:01]} Qe7 {[%emt 0:00:03]} 5. g3 {[%emt 0:00:09]} Bxd2+ {[%emt 0:00:04]} 6. Qxd2 {[%emt 0:00:05]} Nc6 {[%emt 0:00:03]} 7. b3 {[%emt 0:00:16]} d5 {[%emt 0:00:36]} 8. Bg2 {[%emt 0:00:11]} O-O {[%emt 0:00:09]} 9. O-O {[%emt 0:00:09]} dxc4 {[%emt 0:00:47]} 10. bxc4 {[%emt 0:00:00]} Rd8 {[%emt 0:00:02]} 11. Qb2 {[%emt 0:00:07]} Ne4 {[%emt 0:01:27]} 12. e3 {[%emt 0:01:39]} Bd7 {[%emt 0:03:23]} 13. Nbd2 {[%emt 0:00:34]} Nxd2 {[%emt 0:00:13]} 14. Nxd2 {[%emt 0:00:00]} Rab8 {[%emt 0:00:09]} 15. Rfc1 {[%emt 0:01:53]} Nb4 {[%emt 0:00:33]} 16. Qc3 {[%emt 0:01:08]} c5 {[%emt 0:01:50]} 17. a3 {[%emt 0:01:26]} Na6 {[%emt 0:00:04]} 18. Qa5 {[%emt 0:02:22]} Bc8 {[%emt 0:01:33]} 19. d5 {[%emt 0:00:44]} b6 {[%emt 0:00:18]} 20. Qa4 {[%emt 0:00:11]} exd5 {[%emt 0:00:35]} 21. cxd5 {[%emt 0:00:02]} b5 {[%emt 0:00:00]} 22. Qf4 {[%emt 0:00:19]} Bb7 {[%emt 0:00:21]} 23. e4 {[%emt 0:00:01]} c4 {[%emt 0:00:02]} 24. Rab1 {[%emt 0:01:47]} Nc5 {[%emt 0:00:20]} 25. Qe3 {[%emt 0:00:03]} a6 {[%emt 0:00:22]} 26. Qc3 {[%emt 0:00:53]} Rbc8 {[%emt 0:00:34]} 27. Re1 {[%emt 0:01:08]} Nd3 {[%emt 0:00:44]} 28. Re3 {[%emt 0:00:22]} Qc5 {[%emt 0:00:50]} 29. Bf1 {[%emt 0:00:19]} f5 {[%emt 0:00:44]} 30. Nxc4 {[%emt 0:00:53]} fxe4 {[%emt 0:00:07]} 31. Bxd3 {[%emt 0:00:17]} exd3 {[%emt 0:00:07]} 32. Re4 {[%emt 0:00:31]} Qxd5 {[%emt 0:00:14]} 33. f3 {[%emt 0:00:07]} Rxc4 {[%emt 0:00:11]} 0-1

[Event "Chess Super League 2021"]
[Site "Online"]
[Date "2021.10.11"]
[Round "1.1"]
[White "Priyanka, Kumari"]
[Black "Mrudul Dehankar"]
[Result "1-0"]
[ECO "B90"]
[WhiteElo "1910"]
[BlackElo "2256"]
[Annotator "ChessBase"]
[PlyCount "75"]
[EventDate "2021.10.11"]
[EventType "team-tourn"]
[EventCountry "NET"]
[SourceTitle "playchess.com"]
[Source "ChessBase"]
[SourceQuality "1"]
[TimeControl "900+10"]

1. e4 {[%emt 0:00:11]} c5 {[%emt 0:00:16]} 2. Nf3 {[%emt 0:00:01]} d6 {[%emt 0:00:02]} 3. d4 {[%emt 0:00:01]} cxd4 {[%emt 0:00:01]} 4. Nxd4 {[%emt 0:00:01]} Nf6 {[%emt 0:00:02]} 5. Nc3 {[%emt 0:00:01]} a6 {[%emt 0:00:01]} 6. h4 {[%emt 0:00:02]} e5 {[%emt 0:01:52]} 7. Nb3 {[%emt 0:00:04]} Be6 {[%emt 0:01:26]} 8. f4 {[%emt 0:00:11]} Be7 {[%emt 0:02:09]} 9. Be2 {[%emt 0:00:43]} b5 {[%emt 0:01:50]} 10. g4 {[%emt 0:00:26]} b4 {[%emt 0:01:28]} 11. Nd5 {[%emt 0:00:10]} Bxd5 {[%emt 0:04:10]} 12. exd5 {[%emt 0:00:05]} Ne4 {[%emt 0:00:04]} 13. g5 {[%emt 0:02:37]} Qb6 {[%emt 0:00:09]} 14. Rf1 {[%emt 0:01:09]} Ng3 {[%emt 0:00:55]} 15. Rf2 {[%emt 0:00:52]} Nxe2 {[%emt 0:00:11]} 16. Qxe2 {[%emt 0:00:11]} Nd7 {[%emt 0:00:02]} 17. Be3 {[%emt 0:00:43]} Qb7 {[%emt 0:00:59]} 18. O-O-O {[%emt 0:01:59]} Qb5 {[%emt 0:02:04]} 19. Kb1 {[%emt 0:02:32]} Qxe2 {[%emt 0:00:20]} 20. Rxe2 {[%emt 0:00:01]} O-O {[%emt 0:00:01]} 21. Na5 {[%emt 0:00:16]} Bd8 {[%emt 0:00:11]} 22. Nc6 {[%emt 0:00:25]} a5 {[%emt 0:00:02]} 23. fxe5 {[%emt 0:00:25]} dxe5 {[%emt 0:00:07]} 24. Bf2 {[%emt 0:00:27]} f6 {[%emt 0:00:15]} 25. gxf6 {[%emt 0:00:10]} gxf6 {[%emt 0:00:23]} 26. c4 {[%emt 0:00:16]} bxc3 {[%emt 0:00:16]} 27. bxc3 {[%emt 0:00:01]} Kf7 {[%emt 0:00:05]} 28. Rb2 {[%emt 0:00:30]} Rg8 {[%emt 0:00:11]} 29. Rb7 {[%emt 0:00:35]} Ke8 {[%emt 0:00:01]} 30. c4 {[%emt 0:00:59]} Rg2 {[%emt 0:00:03]} 31. Be3 {[%emt 0:00:18]} Rg3 {[%emt 0:00:17]} 32. Re1 {[%emt 0:00:11]} Rg4 {[%emt 0:00:11]} 33. c5 {[%emt 0:00:09]} Rc4 {[%emt 0:00:17]} 34. Rg1 {[%emt 0:00:15]} Nf8 {[%emt 0:00:13]} 35. Rgg7 {[%emt 0:00:15]} Ng6 {[%emt 0:00:10]} 36. h5 {[%emt 0:00:12]} Nf8 {[%emt 0:00:15]} 37. Rge7+ {[%emt 0:00:07]} Bxe7 {[%emt 0:00:01]} 38. Rxe7# {[%emt 0:00:01]} 1-0

[Event "Chess Super League 2021"]
[Site "Online"]
[Date "2021.10.11"]
[Round "1.2"]
[White "Muzychuk, Anna"]
[Black "Kulkarni Bhakti"]
[Result "1-0"]
[ECO "C26"]
[WhiteElo "2533"]
[BlackElo "2388"]
[Annotator "ChessBase"]
[PlyCount "123"]
[EventDate "2021.10.11"]
[EventType "team-tourn"]
[EventCountry "NET"]
[SourceTitle "playchess.com"]
[Source "ChessBase"]
[SourceQuality "1"]
[TimeControl "900+10"]

1. e4 {[%emt 0:00:11]} e5 {[%emt 0:00:15]} 2. Nc3 {[%emt 0:00:02]} Nf6 {[%emt 0:00:08]} 3. d4 {[%emt 0:00:04]} exd4 {[%emt 0:00:29]} 4. Qxd4 {[%emt 0:00:00]} Nc6 {[%emt 0:00:03]} 5. Qd3 {[%emt 0:00:06]} d6 {[%emt 0:00:29]} 6. Bf4 {[%emt 0:00:06]} Be7 {[%emt 0:00:30]} 7. f3 {[%emt 0:00:07]} O-O {[%emt 0:00:09]} 8. O-O-O {[%emt 0:00:06]} Nh5 {[%emt 0:00:16]} 9. Be3 {[%emt 0:00:11]} Bg5 {[%emt 0:00:07]} 10. Kb1 {[%emt 0:00:56]} Be6 {[%emt 0:01:13]} 11. Qd2 {[%emt 0:00:12]} Bxe3 {[%emt 0:00:03]} 12. Qxe3 {[%emt 0:00:00]} Re8 {[%emt 0:00:24]} 13. g4 {[%emt 0:00:20]} Nf6 {[%emt 0:00:04]} 14. Nge2 {[%emt 0:00:05]} b5 {[%emt 0:01:06]} 15. Nxb5 {[%emt 0:01:11]} Qb8 {[%emt 0:00:06]} 16. Ned4 {[%emt 0:00:12]} Qb6 {[%emt 0:00:38]} 17. Nf5 {[%emt 0:02:12]} Qa5 {[%emt 0:00:34]} 18. Qa3 {[%emt 0:00:33]} Qb6 {[%emt 0:00:04]} 19. Qc3 {[%emt 0:00:27]} a6 {[%emt 0:00:21]} 20. Nbd4 {[%emt 0:00:10]} Nxd4 {[%emt 0:00:17]} 21. Rxd4 {[%emt 0:00:50]} Bxf5 {[%emt 0:01:43]} 22. gxf5 {[%emt 0:00:04]} d5 {[%emt 0:00:11]} 23. Bg2 {[%emt 0:00:58]} c5 {[%emt 0:00:14]} 24. Rdd1 {[%emt 0:00:08]} dxe4 {[%emt 0:01:33]} 25. fxe4 {[%emt 0:00:12]} Nxe4 {[%emt 0:00:02]} 26. Bxe4 {[%emt 0:04:36]} Rxe4 {[%emt 0:00:03]} 27. Rd5 {[%emt 0:00:15]} Rae8 {[%emt 0:00:20]} 28. Rhd1 {[%emt 0:00:49]} c4 {[%emt 0:01:02]} 29. a4 {[%emt 0:00:23]} Qb8 {[%emt 0:03:56]} 30. Rd6 {[%emt 0:00:31]} Qc8 {[%emt 0:00:14]} 31. Rg1 {[%emt 0:00:21]} R8e5 {[%emt 0:00:20]} 32. Qg3 {[%emt 0:02:44]} Qf8 {[%emt 0:00:05]} 33. Rxa6 {[%emt 0:00:03]} Re8 {[%emt 0:00:59]} 34. Qd6 {[%emt 0:00:19]} Qxd6 {[%emt 0:00:40]} 35. Rxd6 {[%emt 0:00:00]} Ra8 {[%emt 0:00:48]} 36. f6 {[%emt 0:00:17]} g6 {[%emt 0:00:06]} 37. Rgd1 {[%emt 0:00:07]} Ree8 {[%emt 0:00:15]} 38. b3 {[%emt 0:00:02]} g5 {[%emt 0:00:18]} 39. h4 {[%emt 0:00:41]} cxb3 {[%emt 0:00:16]} 40. cxb3 {[%emt 0:00:02]} gxh4 {[%emt 0:00:41]} 41. R6d4 {[%emt 0:00:20]} Ra6 {[%emt 0:00:31]} 42. Rd8 {[%emt 0:00:42]} Kf8 {[%emt 0:00:02]} 43. Rxe8+ {[%emt 0:00:04]} Kxe8 {[%emt 0:00:00]} 44. Rh1 {[%emt 0:00:15]} Rxf6 {[%emt 0:00:03]} 45. Rxh4 {[%emt 0:00:02]} h6 {[%emt 0:00:03]} 46. Kb2 {[%emt 0:00:01]} Kd7 {[%emt 0:00:14]} 47. Ka3 {[%emt 0:00:09]} Kc6 {[%emt 0:00:03]} 48. a5 {[%emt 0:00:05]} Kb5 {[%emt 0:00:03]} 49. Rh5+ {[%emt 0:00:02]} Ka6 {[%emt 0:00:02]} 50. Ka4 {[%emt 0:00:04]} Rg6 {[%emt 0:00:17]} 51. b4 {[%emt 0:00:03]} Kb7 {[%emt 0:00:04]} 52. Rb5+ {[%emt 0:00:14]} Ka6 {[%emt 0:00:12]} 53. Rf5 {[%emt 0:00:04]} f6 {[%emt 0:00:07]} 54. Rd5 {[%emt 0:00:01]} Kb7 {[%emt 0:00:09]} 55. Rd7+ {[%emt 0:00:06]} Kc8 {[%emt 0:00:09]} 56. Rf7 {[%emt 0:00:08]} h5 {[%emt 0:00:03]} 57. a6 {[%emt 0:00:04]} Kb8 {[%emt 0:00:01]} 58. b5 {[%emt 0:00:06]} Rh6 {[%emt 0:00:42]} 59. Rf8+ {[%emt 0:00:04]} Ka7 {[%emt 0:00:02]} 60. Ka5 {[%emt 0:00:04]} f5 {[%emt 0:00:02]} 61. b6+ {[%emt 0:00:05]} Rxb6 {[%emt 0:00:02]} 62. Rf7+ {[%emt 0:00:01]} 1-0

[Event "Chess Super League 2021"]
[Site "Online"]
[Date "2021.10.11"]
[Round "1.2"]
[White "Abdumalik, Zhansaya"]
[Black "Harika, Dronavalli"]
[Result "1-0"]
[ECO "C42"]
[WhiteElo "2507"]
[BlackElo "2511"]
[Annotator "ChessBase"]
[PlyCount "57"]
[EventDate "2021.10.11"]
[EventType "team-tourn"]
[EventCountry "NET"]
[SourceTitle "playchess.com"]
[Source "ChessBase"]
[SourceQuality "1"]
[TimeControl "900+10"]

1. e4 {[%emt 0:01:51]} e5 {[%emt 0:00:16]} 2. Nf3 {[%emt 0:00:01]} Nf6 {[%emt 0:00:01]} 3. Nxe5 {[%emt 0:00:03]} d6 {[%emt 0:00:03]} 4. Nf3 {[%emt 0:00:00]} Nxe4 {[%emt 0:00:01]} 5. Nc3 {[%emt 0:00:01]} Nf6 {[%emt 0:00:01]} 6. d4 {[%emt 0:00:14]} Be7 {[%emt 0:00:02]} 7. Bg5 {[%emt 0:00:05]} h6 {[%emt 0:00:06]} 8. Bf4 {[%emt 0:00:09]} O-O {[%emt 0:00:06]} 9. Qd2 {[%emt 0:00:01]} Re8 {[%emt 0:00:01]} 10. O-O-O {[%emt 0:00:02]} Bf8 {[%emt 0:00:01]} 11. h3 {[%emt 0:00:04]} a6 {[%emt 0:00:08]} 12. g4 {[%emt 0:00:04]} b5 {[%emt 0:00:01]} 13. a3 {[%emt 0:00:39]} Bb7 {[%emt 0:00:28]} 14. d5 {[%emt 0:00:22]} Ne4 {[%emt 0:01:22]} 15. Nxe4 {[%emt 0:00:23]} Rxe4 {[%emt 0:00:02]} 16. Bg2 {[%emt 0:00:20]} Nd7 {[%emt 0:01:25]} 17. Nd4 {[%emt 0:00:32]} Re8 {[%emt 0:00:18]} 18. g5 {[%emt 0:00:06]} h5 {[%emt 0:00:32]} 19. g6 {[%emt 0:00:38]} fxg6 {[%emt 0:05:43]} 20. Ne6 {[%emt 0:01:07]} Rxe6 {[%emt 0:00:06]} 21. dxe6 {[%emt 0:00:03]} Bxg2 {[%emt 0:00:01]} 22. Rhg1 {[%emt 0:00:21]} Bf3 {[%emt 0:01:35]} 23. exd7 {[%emt 0:01:08]} Bxd1 {[%emt 0:00:34]} 24. Qd5+ {[%emt 0:00:07]} Kh7 {[%emt 0:00:02]} 25. Bg5 {[%emt 0:00:44]} c6 {[%emt 0:00:29]} 26. Qxc6 {[%emt 0:00:32]} Be2 {[%emt 0:03:06]} 27. Bxd8 {[%emt 0:00:13]} Rxd8 {[%emt 0:00:01]} 28. Re1 {[%emt 0:00:13]} Bc4 {[%emt 0:00:08]} 29. Re8 {[%emt 0:00:04]} 1-0

[Event "Chess Super League 2021"]
[Site "Online"]
[Date "2021.10.11"]
[Round "1.2"]
[White "Raja Harshit"]
[Black "Arjun Kalyan"]
[Result "0-1"]
[ECO "E01"]
[WhiteElo "2494"]
[BlackElo "2537"]
[Annotator "ChessBase"]
[PlyCount "90"]
[EventDate "2021.10.11"]
[EventType "team-tourn"]
[EventCountry "NET"]
[SourceTitle "playchess.com"]
[Source "ChessBase"]
[SourceQuality "1"]
[TimeControl "900+10"]

1. d4 {[%emt 0:00:12]} Nf6 {[%emt 0:00:13]} 2. c4 {[%emt 0:00:03]} e6 {[%emt 0:00:01]} 3. Nf3 {[%emt 0:00:04]} d5 {[%emt 0:00:02]} 4. g3 {[%emt 0:00:02]} Bb4+ {[%emt 0:00:04]} 5. Bd2 {[%emt 0:00:02]} Bd6 {[%emt 0:00:03]} 6. Bg2 {[%emt 0:00:05]} O-O {[%emt 0:00:02]} 7. O-O {[%emt 0:00:01]} c6 {[%emt 0:00:05]} 8. Bc3 {[%emt 0:00:12]} Ne4 {[%emt 0:00:05]} 9. Nbd2 {[%emt 0:00:24]} Nxc3 {[%emt 0:00:04]} 10. bxc3 {[%emt 0:00:03]} b6 {[%emt 0:00:08]} 11. a4 {[%emt 0:00:43]} Nd7 {[%emt 0:00:26]} 12. e4 {[%emt 0:01:42]} Qc7 {[%emt 0:00:53]} 13. Qc2 {[%emt 0:01:41]} Bb7 {[%emt 0:00:40]} 14. a5 {[%emt 0:00:36]} Rab8 {[%emt 0:00:18]} 15. a6 {[%emt 0:01:33]} Ba8 {[%emt 0:00:33]} 16. Rfe1 {[%emt 0:00:24]} Rfc8 {[%emt 0:00:56]} 17. Bh3 {[%emt 0:02:04]} Re8 {[%emt 0:01:28]} 18. Rad1 {[%emt 0:02:42]} h6 {[%emt 0:00:54]} 19. Re3 {[%emt 0:00:23]} Bf8 {[%emt 0:00:55]} 20. Rde1 {[%emt 0:01:14]} Nf6 {[%emt 0:00:18]} 21. cxd5 {[%emt 0:01:57]} cxd5 {[%emt 0:00:10]} 22. e5 {[%emt 0:00:00]} Nh7 {[%emt 0:02:24]} 23. Nh4 {[%emt 0:00:18]} b5 {[%emt 0:00:35]} 24. f4 {[%emt 0:00:45]} b4 {[%emt 0:00:12]} 25. Bf1 {[%emt 0:00:33]} Be7 {[%emt 0:01:23]} 26. Rc1 {[%emt 0:00:30]} Rec8 {[%emt 0:00:09]} 27. Nhf3 {[%emt 0:00:48]} Nf8 {[%emt 0:00:43]} 28. f5 {[%emt 0:00:22]} exf5 {[%emt 0:00:11]} 29. Qxf5 {[%emt 0:00:05]} b3 {[%emt 0:01:22]} 30. Rb1 {[%emt 0:00:11]} b2 {[%emt 0:00:07]} 31. e6 {[%emt 0:00:09]} fxe6 {[%emt 0:01:21]} 32. Qg4 {[%emt 0:00:02]} Bf6 {[%emt 0:00:11]} 33. Bd3 {[%emt 0:00:12]} Bc6 {[%emt 0:00:40]} 34. Ne5 {[%emt 0:00:25]} Be8 {[%emt 0:00:08]} 35. Ndf3 {[%emt 0:00:07]} Qd6 {[%emt 0:00:32]} 36. Bc2 {[%emt 0:00:12]} Rb6 {[%emt 0:00:21]} 37. Rf1 {[%emt 0:00:13]} Rxa6 {[%emt 0:00:27]} 38. Bb1 {[%emt 0:00:02]} Ra1 {[%emt 0:00:11]} 39. Nd2 {[%emt 0:00:02]} Bxe5 {[%emt 0:00:28]} 40. dxe5 {[%emt 0:00:18]} Qc5 {[%emt 0:00:28]} 41. Qf3 {[%emt 0:00:15]} Bg6 {[%emt 0:00:18]} 42. Nb3 {[%emt 0:00:08]} Rxb1 {[%emt 0:00:31]} 43. Rxb1 {[%emt 0:00:16]} Bxb1 {[%emt 0:00:23]} 44. Nxc5 {[%emt 0:00:04]} Be4 {[%emt 0:00:02]} 45. Nxe4 {[%emt 0:00:22]} b1=Q+ {[%emt 0:00:03]} 0-1

[Event "Chess Super League 2021"]
[Site "Online"]
[Date "2021.10.11"]
[Round "1.2"]
[White "Savitha Shri B"]
[Black "Salonika, Saina"]
[Result "0-1"]
[ECO "B53"]
[WhiteElo "2281"]
[BlackElo "2206"]
[Annotator "ChessBase"]
[PlyCount "136"]
[EventDate "2021.10.11"]
[EventType "team-tourn"]
[EventCountry "NET"]
[SourceTitle "playchess.com"]
[Source "ChessBase"]
[SourceQuality "1"]
[TimeControl "900+10"]

1. e4 {[%emt 0:00:16]} c5 {[%emt 0:00:13]} 2. Nf3 {[%emt 0:00:02]} d6 {[%emt 0:00:01]} 3. d4 {[%emt 0:00:20]} cxd4 {[%emt 0:00:02]} 4. Qxd4 {[%emt 0:00:01]} Bd7 {[%emt 0:00:32]} 5. Be2 {[%emt 0:00:08]} Nc6 {[%emt 0:00:05]} 6. Qe3 {[%emt 0:00:01]} Nf6 {[%emt 0:01:11]} 7. h3 {[%emt 0:00:10]} g6 {[%emt 0:00:07]} 8. O-O {[%emt 0:00:04]} Bg7 {[%emt 0:00:02]} 9. c4 {[%emt 0:00:07]} O-O {[%emt 0:00:07]} 10. Nc3 {[%emt 0:00:02]} Qa5 {[%emt 0:01:31]} 11. Rb1 {[%emt 0:00:55]} Qc5 {[%emt 0:00:18]} 12. Qd2 {[%emt 0:02:20]} Be6 {[%emt 0:01:42]} 13. b3 {[%emt 0:00:39]} h6 {[%emt 0:00:37]} 14. Bb2 {[%emt 0:00:36]} a6 {[%emt 0:00:51]} 15. Bd3 {[%emt 0:03:43]} Kh7 {[%emt 0:04:06]} 16. Rfd1 {[%emt 0:00:18]} Rfb8 {[%emt 0:00:25]} 17. Nd5 {[%emt 0:01:25]} Bxd5 {[%emt 0:00:08]} 18. exd5 {[%emt 0:00:05]} Na7 {[%emt 0:00:21]} 19. Re1 {[%emt 0:00:40]} Qc7 {[%emt 0:00:13]} 20. Rbc1 {[%emt 0:00:46]} Qd7 {[%emt 0:00:16]} 21. Qe3 {[%emt 0:00:31]} Nxd5 {[%emt 0:00:31]} 22. cxd5 {[%emt 0:01:00]} Bxb2 {[%emt 0:00:02]} 23. Rc4 {[%emt 0:00:03]} Bf6 {[%emt 0:00:09]} 24. h4 {[%emt 0:00:04]} b5 {[%emt 0:00:48]} 25. Re4 {[%emt 0:00:32]} h5 {[%emt 0:00:29]} 26. Ng5+ {[%emt 0:00:54]} Kg7 {[%emt 0:00:03]} 27. Qg3 {[%emt 0:00:09]} Rg8 {[%emt 0:01:09]} 28. R4e2 {[%emt 0:00:26]} Nc8 {[%emt 0:00:45]} 29. Ne4 {[%emt 0:01:00]} Qg4 {[%emt 0:00:36]} 30. Nxf6 {[%emt 0:00:08]} exf6 {[%emt 0:00:14]} 31. Qe3 {[%emt 0:00:23]} Qxh4 {[%emt 0:00:15]} 32. Rc2 {[%emt 0:00:24]} Qg5 {[%emt 0:00:22]} 33. Qd4 {[%emt 0:00:04]} Qg4 {[%emt 0:00:05]} 34. Re4 {[%emt 0:00:27]} Qd7 {[%emt 0:00:22]} 35. Rf4 {[%emt 0:00:07]} Qd8 {[%emt 0:00:01]} 36. Re2 {[%emt 0:00:13]} Nb6 {[%emt 0:00:54]} 37. Rfe4 {[%emt 0:01:17]} Nd7 {[%emt 0:00:09]} 38. Bc2 {[%emt 0:00:13]} Qb6 {[%emt 0:00:18]} 39. Qb2 {[%emt 0:00:01]} Rgc8 {[%emt 0:00:35]} 40. Kh1 {[%emt 0:00:15]} Rc7 {[%emt 0:00:03]} 41. f4 {[%emt 0:00:04]} Rac8 {[%emt 0:00:06]} 42. Re7 {[%emt 0:00:33]} Nf8 {[%emt 0:00:24]} 43. R7e4 {[%emt 0:00:17]} Qc5 {[%emt 0:00:04]} 44. Rd4 {[%emt 0:00:19]} Qc3 {[%emt 0:00:08]} 45. Qxc3 {[%emt 0:00:01]} Rxc3 {[%emt 0:00:02]} 46. Be4 {[%emt 0:00:02]} Re8 {[%emt 0:00:11]} 47. Rdd2 {[%emt 0:00:21]} Nd7 {[%emt 0:00:12]} 48. Bf3 {[%emt 0:00:01]} Rxe2 {[%emt 0:00:07]} 49. Rxe2 {[%emt 0:00:00]} Rd3 {[%emt 0:00:39]} 50. Re7 {[%emt 0:00:16]} Nb6 {[%emt 0:00:02]} 51. Ra7 {[%emt 0:00:11]} Nxd5 {[%emt 0:00:02]} 52. Rxa6 {[%emt 0:00:02]} Nxf4 {[%emt 0:00:08]} 53. Rb6 {[%emt 0:00:06]} Rd2 {[%emt 0:00:12]} 54. a4 {[%emt 0:00:30]} bxa4 {[%emt 0:00:06]} 55. bxa4 {[%emt 0:00:00]} Ra2 {[%emt 0:00:02]} 56. Ra6 {[%emt 0:00:20]} h4 {[%emt 0:00:39]} 57. a5 {[%emt 0:00:21]} d5 {[%emt 0:00:24]} 58. Ra8 {[%emt 0:00:02]} d4 {[%emt 0:00:05]} 59. a6 {[%emt 0:00:04]} d3 {[%emt 0:00:04]} 60. a7 {[%emt 0:00:16]} d2 {[%emt 0:00:04]} 61. Kh2 {[%emt 0:00:15]} Ne6 {[%emt 0:00:09]} 62. Kg1 {[%emt 0:00:20]} Nd4 {[%emt 0:00:08]} 63. Bg4 {[%emt 0:00:03]} f5 {[%emt 0:00:02]} 64. Bd1 {[%emt 0:00:03]} Nb5 {[%emt 0:00:18]} 65. Bb3 {[%emt 0:00:17]} Rxa7 {[%emt 0:00:20]} 66. Rd8 {[%emt 0:00:01]} Ra3 {[%emt 0:00:13]} 67. Bc2 {[%emt 0:00:22]} Ra2 {[%emt 0:00:06]} 68. Bb3 {[%emt 0:00:02]} Rb2 {[%emt 0:00:04]} 0-1